bitfinex/quotes_SOLUSD_20240614
["timestamp","ask_amount","ask_price","bid_price","bid_amount"]
[1718350853135,200.68,147.55,147.47,16.4239]
[1718350853423,0.17,147.53,147.47,16.4239]
[1718350853713,6.15,147.5,147.47,16.4239]
[1718350853903,0.68,147.53,147.47,16.4239]
[1718350854103,6.15,147.5,147.47,16.4239]
[1718350854608,206.0581,147.59,147.47,16.4239]
[1718350854826,6.15,147.53,147.47,16.4239]
[1718350855789,6.15,147.53,147.47,22.5739]
[1718350856190,100.0,147.57,147.48,6.15]
[1718350856191,6.15,147.54,147.48,6.15]
[1718350856427,6.15,147.53,147.47,22.5739]
[1718350858643,6.15,147.53,147.47,16.4239]
[1718350858806,6.15,147.52,147.47,16.4239]
[1718350859008,6.15,147.52,147.47,22.5739]
[1718350859527,6.15,147.53,147.47,22.5739]
[1718350860240,7.07046126,147.59,147.49,15.6461]
[1718350860399,7.07046126,147.59,147.5,6.15]
[1718350860598,6.15,147.57,147.51,6.15]
[1718350860829,6.15,147.56,147.5,6.15]
[1718350861828,7.07046126,147.59,147.5,6.15]
[1718350862129,6.15,147.56,147.5,6.15]
[1718350863700,6.15,147.56,147.49,15.6461]
[1718350863932,6.15,147.55,147.49,21.7961]
[1718350866318,6.15,147.55,147.49,15.6461]
[1718350866511,6.15,147.55,147.49,21.7961]
[1718350868132,0.68,147.58,147.49,21.7961]
[1718350868438,6.15,147.55,147.49,21.7961]
[1718350868934,0.68,147.58,147.49,21.7961]
[1718350869148,6.15,147.56,147.5,6.15]
[1718350869630,6.15,147.57,147.49,18.1547]
[1718350869812,6.15,147.57,147.51,6.15]
[1718350873139,6.15,147.56,147.5,6.15]
[1718350873835,0.68,147.58,147.49,15.6461]
[1718350874019,6.15,147.54,147.49,15.6461]
[1718350875830,6.15,147.55,147.49,21.7961]
[1718350877030,0.34,147.58,147.49,18.1547]
[1718350877246,6.15,147.56,147.49,18.1547]
[1718350877417,6.15,147.56,147.5,6.15]
[1718350877617,0.34,147.58,147.5,6.15]
[1718350877854,6.15,147.57,147.51,6.15]
[1718350878026,6.15,147.57,147.5,6.15]
[1718350878719,6.15,147.57,147.49,15.6461]
[1718350878924,6.15,147.55,147.49,21.7961]
[1718350881235,0.34,147.58,147.49,21.7961]
[1718350881427,6.15,147.56,147.49,21.7961]
[1718350881743,6.15,147.55,147.49,21.7961]
[1718350886242,6.15,147.55,147.49,15.6461]
[1718350886574,6.15,147.55,147.49,21.7961]
[1718350886870,45.34,147.58,147.5,6.15]
[1718350887078,6.15,147.56,147.5,6.15]
[1718350888576,45.34,147.58,147.5,6.15]
[1718350888753,6.15,147.56,147.5,6.15]
[1718350890374,45.34,147.58,147.5,6.15]
[1718350890875,6.15,147.56,147.5,6.15]
[1718350891380,106.3734,147.63,147.51,9.1705]
[1718350891574,100.0,147.63,147.53,6.15]
[1718350891779,6.15,147.59,147.53,6.15]
[1718350891970,6.15,147.59,147.54,6.15]
[1718350892360,124.6,147.63,147.54,6.15]
[1718350892577,6.15,147.59,147.54,6.15]
[1718350893175,0.17,147.62,147.54,6.15]
[1718350893381,6.15,147.59,147.54,6.15]
[1718350893678,6.3848,147.67,147.57,6.15]
[1718350893889,483.8,147.68,147.59,6.15]
[1718350893890,100.0,147.68,147.59,6.15]
[1718350894199,1.2819,147.69,147.56,18.2035]
[1718350894200,6.15,147.65,147.6,6.15]
[1718350894968,6.15,147.66,147.6,6.15]
[1718350895577,1.2819,147.69,147.61,6.15]
[1718350895880,1.2819,147.69,147.57,22.8772]
[1718350895881,6.15,147.67,147.57,22.8772]
[1718350896085,6.15,147.67,147.58,65.0]
[1718350896293,1.2819,147.69,147.58,65.0]
[1718350896588,125.6183,147.7,147.59,21.7059]
[1718350896589,6.15,147.67,147.59,21.7059]
[1718350898055,6.15,147.65,147.59,21.7059]
[1718350898581,6.15,147.65,147.59,27.8559]
[1718350899556,6.15,147.65,147.59,21.7059]
[1718350899755,6.15,147.65,147.59,27.8559]
[1718350901288,0.17,147.66,147.59,27.8559]
[1718350901461,6.15,147.65,147.59,27.8559]
[1718350902966,6.15,147.65,147.6,6.15]
[1718350903994,6.32,147.66,147.6,6.15]
[1718350905788,6.15,147.65,147.59,21.7059]
[1718350905959,6.15,147.64,147.59,21.7059]
[1718350906378,6.15,147.61,147.59,21.7059]
[1718350906583,0.34,147.62,147.55,16.0649]
[1718350906794,0.17,147.62,147.55,16.0649]
[1718350906984,0.34,147.62,147.55,16.0649]
[1718350907891,0.17,147.61,147.55,16.0649]
[1718350908198,0.34,147.61,147.55,16.0649]
[1718350908398,0.17,147.6,147.55,16.0649]
[1718350908568,0.34,147.6,147.55,16.0649]
[1718350908886,6.15,147.57,147.55,16.0649]
[1718350909967,6.15,147.58,147.55,16.0649]
[1718350913094,0.34,147.59,147.5,24.9932]
[1718350913310,0.17,147.58,147.51,6.15]
[1718350913492,6.15,147.57,147.52,6.15]
[1718350914620,6.15,147.58,147.52,6.15]
[1718350917486,6.15,147.59,147.53,6.15]
[1718350918685,0.17,147.6,147.54,16.6076]
[1718350918995,6.15,147.59,147.54,16.6076]
[1718350919602,6.32,147.6,147.54,22.7576]
[1718350920206,0.17,147.6,147.54,22.7576]
[1718350920507,107.06714963,147.65,147.56,6.15]
[1718350920712,6.15,147.61,147.56,6.15]
[1718350920906,6.15,147.61,147.55,12.4335]
[1718350923405,6.15,147.6,147.55,6.2835]
[1718350923620,6.15,147.59,147.55,6.2835]
[1718350925809,6.15,147.57,147.54,16.6076]
[1718350926708,6.15,147.56,147.54,16.6076]
[1718350932732,0.34,147.58,147.54,16.6076]
[1718350932923,6.15,147.56,147.54,16.6076]
[1718350935335,0.17,147.57,147.54,16.6076]
[1718350935515,6.15,147.56,147.54,16.6076]
[1718350937159,45.17,147.58,147.54,16.6076]
[1718350937160,6.15,147.57,147.54,16.6076]
[1718350944451,6.15,147.56,147.54,16.6076]
[1718350945251,113.26245194,147.63,147.54,16.6076]
[1718350945436,6.15,147.59,147.54,16.6076]
[1718350945630,6.15,147.58,147.54,16.6076]
[1718350949353,131.64855194,147.63,147.54,16.6076]
[1718350949354,6.15,147.56,147.54,16.6076]
[1718350949860,6.15,147.55,147.54,16.6076]
[1718350950346,6.15,147.56,147.54,16.6076]
[1718350956432,0.17,147.6,147.54,16.6076]
[1718350956660,6.15,147.56,147.54,16.6076]
[1718350956828,6.15,147.55,147.51,6.5889]
[1718350957031,6.15,147.53,147.5,15.6887]
[1718350960168,0.34,147.54,147.5,15.6887]
[1718350960169,6.15,147.52,147.5,15.6887]
[1718350960672,6.15,147.51,147.5,15.6887]
[1718350960966,6.15,147.52,147.5,15.6887]
[1718350961946,6.15,147.53,147.5,15.6887]
[1718350964383,0.34,147.54,147.5,15.6887]
[1718350964561,0.34,147.56,147.5,15.6887]
[1718350964562,6.15,147.53,147.5,15.6887]
[1718350966871,0.34,147.55,147.5,15.6887]
[1718350967257,6.15,147.53,147.5,15.6887]
[1718350980284,106.0666,147.61,147.5,15.6887]
[1718350980473,6.15,147.56,147.5,21.8387]
[1718350984981,6.15,147.55,147.5,21.8387]
[1718350985160,6.15,147.55,147.5,15.6887]
[1718350985358,0.34,147.57,147.5,15.6887]
[1718350985594,6.15,147.58,147.52,6.15]
[1718350985904,101.2819,147.63,147.54,6.15]
[1718350986092,6.15,147.6,147.54,6.15]
[1718350986417,6.15,147.61,147.56,6.2924]
[1718350986765,259.7,147.65,147.56,6.2924]
[1718350986965,259.7,147.65,147.56,12.4424]
[1718350987176,6.15,147.62,147.56,12.4424]
[1718350987390,6.15,147.61,147.56,6.2924]
[1718350989786,6.15,147.6,147.56,6.2924]
[1718350990280,0.17,147.64,147.56,6.2924]
[1718350990594,6.15,147.6,147.56,6.2924]
[1718350992609,6.15,147.61,147.56,6.2924]
[1718350992815,6.15,147.6,147.56,6.2924]
[1718350994792,0.34,147.62,147.56,6.2924]
[1718350995004,6.15,147.61,147.56,6.2924]
[1718350995296,6.32,147.61,147.56,6.2924]
[1718350995498,6.15,147.61,147.56,6.2924]
[1718350998104,0.34,147.63,147.56,6.2924]
[1718350998305,6.15,147.61,147.56,6.2924]
[1718351002003,6.49503753,147.6,147.56,6.2924]
[1718351002504,0.34503753,147.6,147.56,6.2924]
[1718351006598,6.49503753,147.6,147.56,6.2924]
[1718351009284,0.34503753,147.6,147.56,6.2924]
[1718351011115,6.49503753,147.6,147.56,6.2924]
[1718351011807,0.34503753,147.6,147.56,6.2924]
[1718351012584,0.34503753,147.6,147.57,15.7839]
[1718351012792,0.34503753,147.6,147.57,21.9339]
[1718351014087,0.34503753,147.6,147.57,15.7839]
[1718351014288,0.34503753,147.6,147.57,21.9339]
[1718351015086,0.34503753,147.6,147.57,15.7839]
[1718351018828,0.34503753,147.6,147.57,21.9339]
[1718351020329,0.34503753,147.6,147.57,15.7839]
[1718351020519,0.34503753,147.6,147.57,21.9339]
[1718351020898,0.34503753,147.6,147.57,15.7839]
[1718351023505,6.49503753,147.6,147.57,15.7839]
[1718351024424,0.34503753,147.6,147.57,15.7839]
[1718351025115,6.49503753,147.6,147.57,15.7839]
[1718351029404,0.34503753,147.6,147.57,15.7839]
[1718351029605,6.15,147.59,147.57,15.7839]
[1718351029942,6.15,147.58,147.57,15.7839]
[1718351030127,6.15,147.58,147.53,16.1557]
[1718351030452,6.15,147.57,147.53,16.1557]
[1718351040238,0.51,147.59,147.53,16.1557]
[1718351040544,6.15,147.57,147.53,16.1557]
[1718351040930,6.15,147.56,147.53,16.1557]
[1718351041256,6.3977559,147.56,147.53,16.1557]
[1718351042635,0.2477559,147.56,147.53,16.1557]
[1718351042940,6.3977559,147.56,147.53,16.1557]
[1718351044358,0.17,147.55,147.49,15.6976]
[1718351044579,6.15,147.53,147.49,15.6976]
[1718351047129,0.51,147.55,147.49,15.6976]
[1718351047326,6.15,147.52,147.49,15.6976]
[1718351047671,6.15,147.52,147.45,21.9559]
[1718351047829,6.15,147.51,147.45,21.9559]
[1718351048147,6.15,147.51,147.45,28.1059]
[1718351048348,0.51,147.55,147.45,28.1059]
[1718351048536,0.17,147.54,147.45,28.1059]
[1718351048735,0.17,147.53,147.45,28.1059]
[1718351048955,0.51,147.53,147.45,28.1059]
[1718351049151,0.2477559,147.52,147.45,28.1059]
[1718351049852,6.15,147.5,147.45,21.9559]
[1718351052333,0.34,147.51,147.45,21.9559]
[1718351052539,6.15,147.5,147.45,21.9559]
[1718351052957,6.15,147.5,147.45,28.1059]
[1718351053507,0.34,147.52,147.45,28.1059]
[1718351053848,6.15,147.51,147.45,28.1059]
[1718351056857,0.34,147.52,147.45,28.1059]
[1718351057067,6.15,147.51,147.45,28.1059]
[1718351062676,1.2819,147.57,147.45,28.1059]
[1718351062969,6.15,147.52,147.46,6.15]
[1718351066573,0.17,147.54,147.46,6.15]
[1718351066775,6.15,147.52,147.46,6.15]
[1718351067890,0.68,147.54,147.46,6.15]
[1718351068057,0.17,147.54,147.49,16.1297]
[1718351068371,6.32,147.54,147.49,16.1297]
[1718351069774,0.17,147.54,147.49,16.1297]
[1718351070078,6.15,147.52,147.49,16.1297]
[1718351070666,6.32,147.51,147.45,22.016]
[1718351070877,6.15,147.5,147.45,22.016]
[1718351071549,6.32,147.51,147.45,28.166]
[1718351072377,6.32,147.51,147.45,22.016]
[1718351072590,6.32,147.51,147.45,28.166]
[1718351073496,6.32,147.51,147.45,22.016]
[1718351073658,6.32,147.51,147.45,28.166]
[1718351079663,0.17,147.51,147.45,28.166]
[1718351079864,6.15,147.51,147.45,28.166]
[1718351081091,0.17,147.52,147.46,6.15]
[1718351081266,6.32,147.52,147.46,6.15]
[1718351084765,0.17,147.52,147.46,6.15]
[1718351084988,6.32,147.52,147.46,6.15]
[1718351089372,6.32,147.52,147.47,8.14116407]
[1718351090591,6.15,147.51,147.45,22.016]
[1718351090784,6.15,147.51,147.46,8.14111583]
[1718351096404,0.17,147.52,147.46,8.14111583]
[1718351096605,6.15,147.51,147.46,8.14111583]
[1718351098701,0.34,147.52,147.46,8.14111583]
[1718351099005,6.15,147.51,147.46,8.14111583]
[1718351100211,0.17,147.52,147.46,8.14111583]
[1718351100508,100.0,147.58,147.47,6.15]
[1718351100683,6.15,147.54,147.48,14.29111583]
[1718351100883,6.15,147.54,147.49,8.14111583]
[1718351102912,0.17,147.55,147.49,8.14111583]
[1718351103117,6.15,147.54,147.49,8.14111583]
[1718351103812,201.2819,147.6,147.5,6.5648]
[1718351103994,6.15,147.57,147.5,6.5648]
[1718351104198,6.15,147.57,147.51,6.15]
[1718351106498,366.2615,147.62,147.55,6.15]
[1718351106499,259.7,147.62,147.55,6.15]
[1718351106820,259.7,147.62,147.56,6.15]
[1718351107016,265.85,147.62,147.56,6.15]
[1718351107196,259.7,147.62,147.57,15.9674]
[1718351107529,265.85,147.62,147.57,15.9674]
[1718351107889,259.7,147.62,147.57,22.1174]
[1718351108094,265.85,147.62,147.57,15.9674]
[1718351108329,6.15,147.6,147.57,15.9674]
[1718351108819,259.7,147.62,147.57,15.9674]
[1718351109321,0.17,147.61,147.57,15.9674]
[1718351109525,0.51,147.61,147.57,15.9674]
[1718351109712,6.15,147.6,147.57,15.9674]
[1718351110098,6.15,147.61,147.57,15.9674]
[1718351110295,259.7,147.62,147.57,22.1174]
[1718351110603,6.15,147.65,147.59,6.15]
[1718351111918,6.15,147.63,147.57,22.1174]
[1718351113895,200.0,147.68,147.57,22.1174]
[1718351113896,6.15,147.61,147.57,15.9674]
[1718351116308,6.15,147.62,147.57,15.9674]
[1718351116894,6.15,147.63,147.57,22.1174]
[1718351117825,6.15,147.64,147.58,6.15]
[1718351118812,6.15,147.63,147.57,22.1174]
[1718351120703,0.33333333,147.62,147.57,22.1174]
[1718351124803,0.33333333,147.62,147.58,6.15]
[1718351125509,0.33333333,147.62,147.59,6.15]
[1718351125736,0.33333333,147.62,147.6,12.496]
[1718351125911,0.33333333,147.62,147.6,6.346]
[1718351129522,0.33333333,147.62,147.57,28.3442]
[1718351129724,6.48333333,147.62,147.57,22.1942]
[1718351130915,0.33333333,147.62,147.57,28.3442]
[1718351131814,0.33333333,147.62,147.58,6.15]
[1718351134748,0.33333333,147.62,147.57,22.1942]
[1718351134925,0.33333333,147.62,147.6,6.15]
[1718351137761,0.33333333,147.62,147.61,6.15]
[1718351137967,0.33333333,147.62,147.6,6.15]
[1718351145172,0.33333333,147.62,147.59,0.17]
[1718351145341,0.33333333,147.62,147.61,21.5266]
[1718351148050,0.33333333,147.62,147.61,15.3766]
[1718351148252,0.33333333,147.62,147.61,21.5266]
[1718351152582,0.33333333,147.62,147.61,15.3766]
[1718351152771,0.33333333,147.62,147.61,21.5266]
[1718351153374,0.33333333,147.62,147.57,22.5729]
[1718351153570,0.33333333,147.62,147.58,26.15]
[1718351159314,0.33333333,147.62,147.58,20.0]
[1718351159498,0.33333333,147.62,147.58,26.15]
[1718351159816,0.33333333,147.62,147.59,6.15]
[1718351160187,0.33333333,147.62,147.58,40.36]
[1718351160507,0.33333333,147.62,147.61,6.15]
[1718351163507,0.33333333,147.62,147.61,51.15]
[1718351170093,0.33333333,147.62,147.61,45.0]
[1718351170319,0.33333333,147.62,147.61,51.15]
[1718351174822,0.33333333,147.62,147.61,102.65909586]
[1718351175621,0.33333333,147.62,147.61,100.15249586]
[1718351176219,0.33333333,147.62,147.61,102.65909586]
[1718351176413,0.33333333,147.62,147.61,124.64669586]
[1718351176617,0.33333333,147.62,147.61,131.01989586]
[1718351178537,1.0183,147.7,147.63,20.36]
[1718351178853,1.0183,147.7,147.67,6.15]
[1718351179216,1.0183,147.7,147.69,6.15]
[1718351180525,1.0183,147.7,147.69,71.15]
[1718351181236,1.0183,147.7,147.69,26.68]
[1718351181542,1.0183,147.7,147.69,72.02]
[1718351182639,1.0183,147.7,147.69,100.8452]
[1718351185640,1.6152,147.82,147.73,20.36]
[1718351185945,1.6152,147.82,147.77,6.15]
[1718351187517,1.6152,147.82,147.78,6.15]
[1718351187738,1.6152,147.82,147.77,6.15]
[1718351188019,7.7652,147.82,147.74,20.36]
[1718351188225,7.7652,147.82,147.7,13.5321889]
[1718351188226,101.6152,147.82,147.7,33.1223889]
[1718351188424,6.15,147.78,147.72,6.15]
[1718351189159,6.15,147.78,147.73,6.15]
[1718351189747,6.15,147.8,147.74,6.15]
[1718351191451,0.17,147.81,147.75,6.15]
[1718351191745,1.6152,147.82,147.76,6.15]
[1718351192046,7.7652,147.82,147.76,6.15]
[1718351195752,1.6152,147.82,147.71,20.53]
[1718351195933,6.15,147.8,147.72,20.0]
[1718351196248,6.15,147.8,147.74,6.15]
[1718351197246,0.17,147.81,147.74,6.15]
[1718351197452,0.17,147.81,147.75,6.15]
[1718351198225,1.6152,147.82,147.75,6.15]
[1718351198428,6.15,147.81,147.75,6.15]
[1718351199656,6.15,147.8,147.74,6.15]
[1718351200851,1.6152,147.82,147.74,6.15]
[1718351201059,6.15,147.8,147.71,23.0348]
[1718351201357,6.15,147.8,147.74,6.15]
[1718351203057,7.7652,147.82,147.76,6.15]
[1718351204161,1.6152,147.82,147.74,0.17]
[1718351204374,2.6335,147.85,147.81,6.15]
[1718351204546,2.6335,147.85,147.78,2.5036]
[1718351204746,2.6335,147.85,147.77,47.4638]
[1718351204937,2.6335,147.85,147.78,45.17]
[1718351205142,2.6335,147.85,147.78,47.6736]
[1718351205466,2.6335,147.85,147.78,65.53]
[1718351205833,2.6335,147.85,147.78,68.0337]
[1718351206745,2.6335,147.85,147.78,65.53]
[1718351208051,2.6335,147.85,147.78,45.17]
[1718351208358,2.6335,147.85,147.8,6.15]
[1718351210582,2.6335,147.85,147.75,22.8642]
[1718351210740,6.15,147.82,147.74,15.1996]
[1718351210941,6.15,147.82,147.76,6.15]
[1718351211161,6.15,147.81,147.76,6.15]
[1718351212860,6.15,147.82,147.76,6.15]
[1718351214268,6.15,147.81,147.75,6.15]
[1718351214847,6.15,147.82,147.76,6.15]
[1718351216238,6.4979,147.83,147.76,6.15]
[1718351216443,6.4979,147.83,147.77,6.15]
[1718351216644,12.6479,147.83,147.77,6.15]
[1718351216967,12.6479,147.83,147.74,20.36]
[1718351217169,6.15,147.82,147.76,6.15]
[1718351217475,6.15,147.82,147.73,23.2044]
[1718351217680,6.15,147.82,147.76,6.15]
[1718351218668,2.6335,147.85,147.81,6.15]
[1718351218850,7.247366,147.87,147.8,2.5033]
[1718351218851,7.247366,147.87,147.83,6.15]
[1718351219248,0.836066,147.87,147.84,6.15]
[1718351220071,0.836066,147.87,147.8,23.0333]
[1718351220072,0.836066,147.87,147.82,6.15]
[1718351220443,0.836066,147.87,147.8,0.17]
[1718351220662,0.836066,147.87,147.82,6.15]
[1718351220863,0.836066,147.87,147.83,6.15]
[1718351223572,0.836066,147.87,147.79,20.36]
[1718351223753,6.986066,147.87,147.82,6.15]
[1718351224169,6.986066,147.87,147.76,16.3962]
[1718351224170,6.15,147.84,147.76,16.3962]
[1718351224469,6.5104,147.85,147.74,8.7602]
[1718351224470,6.15,147.83,147.77,6.15]
[1718351224674,6.15,147.84,147.78,6.15]
[1718351224842,6.5104,147.85,147.72,16.0553]
[1718351224843,2.6335,147.82,147.72,16.0553]
[1718351225048,6.15,147.8,147.71,20.36]
[1718351225248,6.15,147.79,147.73,6.15]
[1718351225479,6.15,147.77,147.68,22.7103]
[1718351225693,0.17,147.78,147.71,6.15]
[1718351225983,0.17,147.79,147.73,6.15]
[1718351226270,6.49,147.79,147.73,6.15]
[1718351227884,0.34,147.79,147.68,43.0703]
[1718351228065,6.15,147.77,147.71,6.15]
[1718351228645,0.17,147.78,147.68,36.9203]
[1718351228847,0.34,147.78,147.68,36.9203]
[1718351229054,0.34,147.77,147.68,36.9203]
[1718351230488,6.654,147.8,147.69,45.0]
[1718351230662,0.51,147.79,147.69,65.17]
[1718351230863,0.51,147.79,147.69,20.0]
[1718351231485,45.51,147.79,147.69,20.0]
[1718351232388,0.17,147.77,147.65,18.49]
[1718351232683,0.17,147.77,147.66,20.0]
[1718351232684,100.68,147.77,147.66,20.0]
[1718351232874,2.6335,147.78,147.65,20.0]
[1718351233180,2.6335,147.78,147.66,18.15089125]
[1718351233375,2.6335,147.78,147.7,22.8649]
[1718351233973,2.6335,147.78,147.71,45.0]
[1718351234979,2.6335,147.78,147.69,20.7]
[1718351235180,2.6335,147.78,147.7,65.0]
[1718351236600,6.654,147.8,147.71,23.3748]
[1718351236783,6.654,147.8,147.72,65.0]
[1718351239003,6.654,147.8,147.72,85.36]
[1718351240415,0.33333334,147.79,147.73,0.17]
[1718351240613,0.33333334,147.79,147.73,0.51]
[1718351242582,0.33333334,147.79,147.73,23.3745]
[1718351242908,0.33333334,147.79,147.74,65.0]
[1718351245008,0.33333334,147.79,147.74,85.36]
[1718351246603,0.33333334,147.79,147.75,0.34]
[1718351248499,0.33333334,147.79,147.75,0.17]
[1718351248987,0.33333334,147.79,147.77,6.16]
[1718351250087,0.33333334,147.79,147.75,0.17]
[1718351250293,0.33333334,147.79,147.78,6.16]
[1718351250504,0.33333334,147.79,147.78,71.16]
[1718351250902,0.33333334,147.79,147.78,71.33]
[1718351253019,0.33333334,147.79,147.78,91.86]
[1718351253310,2.5031,147.82,147.79,0.17]
[1718351253515,2.5031,147.82,147.81,6.16]
[1718351253710,2.5031,147.82,147.81,26.16]
[1718351253900,2.5031,147.82,147.81,71.16]
[1718351255410,2.5031,147.82,147.81,26.16]
[1718351257497,2.5029,147.83,147.81,71.16]
[1718351257715,2.5029,147.83,147.82,6.16]
[1718351260319,0.836066,147.87,147.82,26.52]
[1718351260502,2.5026,147.85,147.83,45.0]
[1718351260824,2.5026,147.85,147.84,6.16]
[1718351268429,0.836066,147.87,147.81,20.0]
[1718351268430,2.503,147.82,147.81,20.0]
[1718351268736,2.503,147.82,147.81,26.16]
[1718351269303,6.16,147.84,147.79,6.0335]
[1718351269513,6.16,147.83,147.77,6.16]
[1718351269747,6.16,147.83,147.72,15.893]
[1718351269748,2.6335,147.81,147.72,15.893]
[1718351269911,12.3141,147.79,147.72,6.3617]
[1718351270105,6.16,147.78,147.73,6.16]
[1718351271031,6.16,147.78,147.71,1.17702649]
[1718351271229,6.16,147.76,147.69,6.4627]
[1718351271739,6.16,147.78,147.69,26.8227]
[1718351271906,12.3141,147.79,147.73,6.16]
[1718351272228,12.3141,147.79,147.74,6.16]
[1718351272409,6.1541,147.79,147.74,6.16]
[1718351272929,6.1541,147.79,147.7,20.36]
[1718351273138,6.1541,147.79,147.71,65.0]
[1718351274825,6.1541,147.79,147.71,87.8649]
[1718351275022,6.1541,147.79,147.72,0.17]
[1718351278509,6.1541,147.79,147.71,65.0]
[1718351279330,6.1541,147.79,147.71,20.0]
[1718351279533,0.17,147.78,147.69,20.0]
[1718351279913,0.34,147.78,147.69,20.0]
[1718351280642,0.34,147.78,147.69,22.5052]
[1718351281510,0.17,147.78,147.7,47.505]
[1718351281716,6.1541,147.79,147.7,65.36]
[1718351282026,6.1541,147.79,147.71,0.17]
[1718351282229,6.1541,147.79,147.7,65.36]
[1718351282446,0.17,147.78,147.7,45.0]
[1718351283621,6.1541,147.79,147.7,65.36]
[1718351283824,6.1541,147.79,147.71,22.6748]
[1718351284038,6.1541,147.79,147.72,45.0]
[1718351285413,6.1541,147.79,147.72,47.5047]
[1718351285627,2.6335,147.81,147.73,40.53]
[1718351285839,2.6335,147.81,147.74,45.0]
[1718351286032,2.6335,147.81,147.75,20.0]
[1718351287639,2.6335,147.81,147.75,40.36]
[1718351287838,2.6335,147.81,147.76,45.0]
[1718351288017,6.4632,147.82,147.76,45.0]
[1718351288348,2.6335,147.85,147.76,67.8639]
[1718351288532,2.6335,147.85,147.77,20.17]
[1718351288844,2.6335,147.85,147.78,45.0]
[1718351290639,2.6335,147.85,147.79,20.17]
[1718351290842,2.6335,147.85,147.8,45.0]
[1718351291043,2.6335,147.85,147.79,20.17]
[1718351291044,2.6335,147.85,147.79,20.0]
[1718351294652,2.6335,147.85,147.76,24.4968]
[1718351294963,2.6335,147.85,147.75,2.6742]
[1718351295159,2.6335,147.85,147.75,8.861]
[1718351295374,2.6335,147.85,147.75,8.691]
[1718351295541,2.6335,147.85,147.75,29.051]
[1718351296746,2.6335,147.85,147.76,65.17]
[1718351299454,2.6335,147.85,147.76,67.674]
[1718351300653,2.6335,147.85,147.77,2.5038]
[1718351300854,2.6335,147.85,147.77,22.8638]
[1718351301060,2.6335,147.85,147.78,45.17]
[1718351301447,2.6335,147.85,147.78,65.53]
[1718351302840,2.6335,147.85,147.8,6.15]
[1718351308062,2.6335,147.85,147.81,6.15]
[1718351308235,2.6335,147.85,147.78,65.53]
[1718351308438,2.6335,147.85,147.81,6.15]
[1718351308659,2.6335,147.85,147.8,6.15]
[1718351308872,8.7835,147.85,147.76,40.53]
[1718351309080,6.15,147.84,147.78,6.15]
[1718351310890,6.15,147.83,147.76,20.0]
[1718351311179,6.15,147.83,147.77,6.15]
[1718351312559,0.17,147.84,147.77,6.15]
[1718351312882,6.15,147.83,147.77,6.15]